fUSD/lending_fUSD_20241023
["ID","MTS","AMOUNT","RATE_DAILY","PERIOD"]
[340698514,1729695044534,-500.0,0.00049784,120]
[340698515,1729695044545,-659.49,0.00049784,120]
[340698516,1729695044555,-500.0,0.00049784,120]
[340698517,1729695044570,-500.0,0.00049784,120]
[340698518,1729695044580,-500.0,0.00049784,120]
[340698519,1729695044590,-500.0,0.00049784,120]
[340698520,1729695044601,-500.0,0.00049784,120]
[340698521,1729695044611,-1865.84,0.00049784,120]
[340698522,1729695044621,-500.0,0.00049784,120]
[340698523,1729695044631,-500.0,0.00049784,120]
[340698524,1729695044641,-1034.0,0.00049785,7]
[340698525,1729695044651,-504.98924095,0.00049785,120]
[340698526,1729695044661,-166.93071902,0.00049785,120]
[340698527,1729695044671,-501.66284718,0.00049785,120]
[340698528,1729695044681,-183.2169298,0.00049785,120]
[340698529,1729695044691,-500.0,0.00049785,120]
[340698530,1729695044701,-279.41218495,0.00049785,120]
[340698531,1729695044711,-500.0,0.00049785,120]
[340698532,1729695044720,-500.0,0.00049785,120]
[340698533,1729695044732,-500.0,0.00049785,120]
[340698534,1729695044742,-517.32524492,0.00049785,120]
[340698535,1729695044752,-500.0,0.00049785,120]
[340698536,1729695044762,-154.14276606,0.00049785,120]
[340698537,1729695044773,-508.43065931,0.00049785,120]
[340698538,1729695044787,-506.62747742,0.00049785,120]
[340698539,1729695044797,-500.0,0.00049785,120]
[340698540,1729695044807,-560.84942197,0.00049785,120]
[340698541,1729695044819,-500.0,0.00049785,120]
[340698542,1729695044830,-157.15384406,0.00049785,120]
[340698543,1729695044840,-500.0,0.00049785,120]
[340698544,1729695044851,-293.63129918,0.00049785,120]
[340698545,1729695044861,-500.0,0.00049785,120]
[340698546,1729695044870,-500.0,0.00049785,120]
[340698547,1729695044880,-500.0,0.00049785,120]
[340698548,1729695044890,-500.0,0.00049785,7]
[340698549,1729695044901,-500.0,0.00049785,120]
[340698550,1729695044911,-500.0,0.00049785,120]
[340698551,1729695044920,-500.0,0.00049785,120]
[340698552,1729695044929,-620.20738843,0.00049785,120]
[340698553,1729695044940,-500.0,0.00049785,120]
[340698554,1729695044950,-500.0,0.00049785,120]
[340698555,1729695044960,-644.26360523,0.00049785,120]
[340698556,1729695044970,-500.0,0.00049785,120]
[340698557,1729695044980,-500.0,0.00049785,120]
[340698558,1729695044990,-515.82,0.00049785,120]
[340698559,1729695044999,-507.50271204,0.00049785,120]
[340698560,1729695045008,-513.13460215,0.00049785,120]
[340698561,1729695045018,-507.65240752,0.00049785,120]
[340698562,1729695045027,-508.12550384,0.00049785,120]
[340698563,1729695045037,-500.0,0.00049785,120]
[340698564,1729695045046,-500.0,0.00049785,120]
[340698565,1729695045056,-500.0,0.00049785,120]
[340698566,1729695045068,-506.13522864,0.00049785,120]
[340698567,1729695045078,-500.0,0.00049785,120]
[340698568,1729695045088,-500.0,0.00049785,120]
[340698569,1729695045098,-255.6998199,0.00049785,120]
[340698570,1729695045108,-500.0,0.00049785,120]
[340698571,1729695045118,-203.55402013,0.00049785,120]
[340698572,1729695045128,-500.0,0.00049785,120]
[340698573,1729695045139,-500.0,0.00049785,120]
[340698574,1729695045149,-500.0,0.00049785,120]
[340698575,1729695045158,-520.01463459,0.00049785,120]
[340698576,1729695045168,-500.0,0.00049785,2]
[340698577,1729695045177,-504.74531696,0.00049785,120]
[340698578,1729695045188,-309.02440667,0.00049785,120]
[340698579,1729695045198,-500.0,0.00049785,5]
[340698580,1729695045208,-509.60774519,0.00049785,120]
[340698581,1729695045217,-533.10742438,0.00049785,120]
[340698582,1729695045227,-504.63782264,0.00049785,120]
[340698583,1729695045237,-500.0,0.00049785,120]
[340698584,1729695045247,-500.0,0.00049785,120]
[340698585,1729695045257,-500.0,0.00049785,2]
[340698586,1729695045267,-500.0,0.00049785,2]
[340698587,1729695045276,-590.07388516,0.00049785,120]
[340698589,1729695045287,-500.0,0.00049785,120]
[340698591,1729695045297,-500.0,0.00049785,120]
[340698593,1729695045308,-500.0,0.00049785,120]
[340698594,1729695045317,-500.0,0.00049785,120]
[340698595,1729695045328,-500.0,0.00049785,120]
[340698596,1729695045338,-500.0,0.00049785,120]
[340698597,1729695045349,-511.62701194,0.00049785,120]
[340698598,1729695045359,-500.0,0.00049785,120]
[340698599,1729695045369,-500.0,0.00049785,120]
[340698600,1729695045379,-519.30187439,0.00049785,120]
[340698601,1729695045389,-529.04832756,0.00049785,120]
[340698602,1729695045400,-500.0,0.00049785,120]
[340698603,1729695045410,-500.0,0.00049785,120]
[340698604,1729695045420,-537.46,0.00049785,120]
[340698605,1729695045430,-500.0,0.00049785,16]
[340698606,1729695045440,-500.0,0.00049785,120]
[340698607,1729695045451,-500.0,0.00049785,120]
[340698608,1729695045460,-500.0,0.00049785,120]
[340698609,1729695045471,-500.0,0.00049785,120]
[340698610,1729695045481,-500.0,0.00049785,120]
[340698611,1729695045492,-500.0,0.00049785,120]
[340698612,1729695045502,-500.0,0.00049785,120]
[340698613,1729695045513,-500.0,0.00049785,120]
[340698614,1729695045523,-662.0,0.00049785,120]
[340698615,1729695045533,-791.08,0.00049785,120]
[340698616,1729695045543,-500.0,0.00049785,120]
[340698617,1729695045554,-339.83860536,0.00049785,10]
[340698618,1729695045564,-500.0,0.00049785,120]
[340698619,1729695045574,-500.0,0.00049785,120]
[340698620,1729695045583,-763.78,0.00049785,120]
[340698621,1729695045593,-500.0,0.00049785,120]
[340698622,1729695045602,-626.08100039,0.00049785,120]
[340698623,1729695045612,-500.0,0.00049785,120]
[340698624,1729695045622,-500.0,0.00049785,120]
[340698625,1729695045631,-500.0,0.00049785,120]
[340698626,1729695045640,-571.59,0.00049785,120]
[340698627,1729695045650,-500.0,0.00049785,120]
[340698628,1729695045659,-500.0,0.00049785,120]
[340698629,1729695045668,-500.0,0.00049785,120]
[340698630,1729695045678,-500.0,0.00049785,120]
[340698631,1729695045688,-500.0,0.00049785,120]
[340698632,1729695045697,-500.0,0.00049785,120]
[340698633,1729695045706,-500.0,0.00049785,120]
[340698634,1729695045716,-500.0,0.00049785,120]
[340698635,1729695045725,-500.0,0.00049785,120]
[340698636,1729695045735,-500.0,0.00049785,120]
[340698638,1729695045799,-805.88,0.00049785,120]
[340698640,1729695045810,-500.0,0.00049785,120]
[340698642,1729695045819,-500.0,0.00049785,120]
[340698644,1729695045829,-500.0,0.00049785,120]
[340698646,1729695045839,-500.0,0.00049785,120]
[340698648,1729695045849,-500.0,0.00049786,2]
[340698650,1729695045865,-500.0,0.00049786,120]
[340698652,1729695045875,-300.0,0.00049786,120]
[340698654,1729695045886,-184.64506,0.00049787,120]
[340698656,1729695045896,-276.55634568,0.00049787,7]
[340698659,1729695045907,-1500.0,0.0004979,120]
[340698661,1729695045919,-151.0,0.00049791,120]
[340698663,1729695045928,-2666.6354183,0.00049791,2]
[340698666,1729695045937,-151.0,0.00049791,120]
[340698669,1729695045946,-23786.6767476,0.00049791,2]
[340698672,1729695045955,-151.0,0.00049791,30]
[340698674,1729695045965,-151.0,0.00049791,120]
[340698676,1729695045974,-151.0,0.00049791,120]
[340698678,1729695045983,-151.0,0.00049791,120]
[340698680,1729695045992,-151.0,0.00049791,120]
[340698682,1729695046002,-151.0,0.00049791,120]
[340698684,1729695046011,-151.0,0.00049791,120]
[340698686,1729695046020,-151.0,0.00049791,120]
[340698688,1729695046030,-500.0,0.00049796,120]
[340698690,1729695046039,-500.0,0.00049796,120]
[340698692,1729695046050,-500.0,0.00049796,120]
[340698694,1729695046060,-500.0,0.00049796,120]
[340698696,1729695046069,-500.0,0.00049796,120]
[340698698,1729695046077,-633.36,0.00049796,120]
[340698700,1729695046087,-674.13,0.00049796,120]
[340698702,1729695046096,-500.0,0.00049796,120]
[340698704,1729695046105,-1233.24,0.00049796,7]
[340698706,1729695046114,-500.0,0.00049796,120]
[340698708,1729695046123,-500.0,0.00049796,120]
[340698710,1729695046133,-500.0,0.00049796,120]
[340698712,1729695046144,-500.0,0.00049796,120]
[340698714,1729695046153,-500.0,0.00049796,120]
[340698716,1729695046162,-503.72630548,0.00049796,120]
[340698718,1729695046171,-500.0,0.00049796,120]
[340698720,1729695046181,-500.0,0.00049796,120]
[340698722,1729695046190,-500.0,0.00049796,60]
[340698724,1729695046199,-500.0,0.00049796,120]
[340698726,1729695046208,-500.0,0.00049796,120]
[340698727,1729695046216,-500.0,0.00049796,120]
[340698729,1729695046226,-512.04870704,0.00049796,120]
[340698732,1729695046235,-507.07868488,0.00049796,120]
[340698734,1729695046245,-500.0,0.00049796,120]
[340698735,1729695046254,-500.0,0.00049796,120]
[340698737,1729695046264,-406.61762607,0.00049796,120]
[340698739,1729695046274,-500.0,0.00049796,120]
[340698742,1729695046286,-500.0,0.00049796,120]
[340698744,1729695046296,-500.0,0.00049796,120]
[340698746,1729695046305,-500.0,0.00049796,120]
[340698748,1729695046315,-504.92916626,0.00049796,120]
[340698750,1729695046324,-518.6502037,0.00049796,120]
[340698752,1729695046333,-500.0,0.00049796,120]
[340698754,1729695046342,-502.12376643,0.00049796,120]
[340698756,1729695046351,-500.0,0.00049796,120]
[340698758,1729695046360,-500.0,0.00049796,120]
[340698760,1729695046369,-509.36696392,0.00049796,120]
[340698762,1729695046379,-500.0,0.00049796,120]
[340698764,1729695046388,-500.0,0.00049796,120]
[340698766,1729695046397,-500.0,0.00049796,120]
[340698768,1729695046406,-500.0,0.00049796,120]
[340698770,1729695046415,-500.0,0.00049796,120]
[340698772,1729695046425,-500.0,0.00049796,120]
[340698773,1729695046434,-500.0,0.00049796,120]
[340698776,1729695046444,-500.0,0.00049796,120]
[340698777,1729695046453,-623.29,0.00049796,120]
[340698780,1729695046462,-500.0,0.00049796,120]
[340698782,1729695046471,-500.0,0.00049796,120]
[340698784,1729695046482,-500.0,0.00049796,120]
[340698786,1729695046493,-500.0,0.00049796,120]
[340698788,1729695046502,-500.0,0.00049796,120]
[340698790,1729695046511,-500.0,0.00049796,2]
[340698791,1729695046520,-500.0,0.00049796,120]
[340698793,1729695046529,-436.82353523,0.00049796,120]
[340698795,1729695046538,-512.43187144,0.00049796,120]
[340698797,1729695046547,-526.76605273,0.00049796,120]
[340698799,1729695046557,-500.0,0.00049796,120]
[340698801,1729695046567,-500.0,0.00049796,120]
[340698803,1729695046576,-500.0,0.00049796,120]
[340698805,1729695046586,-500.0,0.00049796,120]
[340698807,1729695046595,-450.93447642,0.00049796,120]
[340698809,1729695046605,-648.30943487,0.00049796,120]
[340698811,1729695046614,-500.0,0.00049796,120]
[340698813,1729695046624,-639.26,0.00049796,120]
[340698815,1729695046632,-616.53,0.00049796,120]
[340698817,1729695046641,-300.0,0.00049796,120]
[340698819,1729695046651,-500.0,0.00049796,120]
[340698821,1729695046660,-500.0,0.00049796,120]
[340698823,1729695046669,-500.0,0.00049796,120]
[340698825,1729695046678,-500.0,0.00049796,120]
[340698826,1729695046687,-500.0,0.00049796,120]
[340698829,1729695046696,-500.0,0.00049796,120]
[340698831,1729695046706,-533.17,0.00049796,120]
[340698832,1729695046715,-500.0,0.00049796,2]
[340698834,1729695046724,-557.53,0.00049796,120]
[340698836,1729695046734,-500.0,0.00049796,2]
[340698838,1729695046743,-500.0,0.00049796,120]
[340698840,1729695046753,-500.0,0.00049796,120]
[340698842,1729695046762,-500.0,0.00049796,120]
[340698844,1729695046771,-500.0,0.00049796,120]
[340698846,1729695046785,-500.0,0.00049796,120]
[340698848,1729695046794,-500.0,0.00049796,120]
[340698850,1729695046803,-500.0,0.00049796,120]
[340698852,1729695046813,-500.0,0.00049796,120]
[340698854,1729695046822,-500.0,0.00049796,120]
[340698856,1729695046831,-500.0,0.00049796,120]
[340698857,1729695046840,-500.0,0.00049796,120]
[340698860,1729695046850,-500.0,0.00049796,120]
[340698862,1729695046861,-500.0,0.00049796,120]
[340698863,1729695046870,-500.0,0.00049796,120]
[340698865,1729695046879,-500.0,0.00049796,120]
[340698867,1729695046889,-500.0,0.00049796,120]
[340698869,1729695046898,-500.0,0.00049796,120]
[340698871,1729695046908,-500.0,0.00049796,120]
[340698873,1729695046918,-761.83,0.00049796,120]
[340698875,1729695046927,-500.0,0.00049796,120]
[340698877,1729695046937,-500.0,0.00049796,120]
[340698879,1729695046946,-500.0,0.00049796,120]
[340698881,1729695046956,-380.07283734,0.00049796,120]
[340698883,1729695046965,-500.0,0.00049796,120]
[340698885,1729695046975,-500.0,0.00049796,120]
[340698887,1729695046985,-500.0,0.00049796,120]
[340698889,1729695046994,-500.0,0.00049796,120]
[340698891,1729695047004,-500.0,0.00049796,120]
[340698893,1729695047013,-500.0,0.00049796,120]
[340698895,1729695047024,-500.0,0.00049796,120]
[340698897,1729695047034,-500.0,0.00049796,120]
[340698899,1729695047043,-500.0,0.00049796,120]
[340698901,1729695047053,-500.0,0.00049796,120]
[340698903,1729695047064,-500.0,0.00049796,120]
[340698905,1729695047073,-1259.92,0.00049796,120]
[340698907,1729695047082,-500.0,0.00049796,120]
[340698909,1729695047092,-500.0,0.00049796,120]
[340698911,1729695047102,-500.0,0.00049796,120]
[340698913,1729695047111,-500.0,0.00049796,120]
[340698915,1729695047120,-500.0,0.00049796,120]
[340698917,1729695047129,-500.0,0.00049796,120]
[340698919,1729695047139,-500.0,0.00049796,120]
[340698921,1729695047149,-500.0,0.00049796,120]
[340698923,1729695047159,-500.0,0.00049796,120]
[340698925,1729695047168,-500.0,0.00049796,120]
[340698927,1729695047178,-500.0,0.00049796,120]
[340698929,1729695047187,-500.0,0.00049796,120]
[340698931,1729695047200,-500.0,0.00049796,120]
[340698933,1729695047210,-500.0,0.00049796,120]
[340698935,1729695047219,-500.0,0.00049796,120]
[340698937,1729695047229,-500.0,0.00049796,120]
[340698939,1729695047239,-500.0,0.00049796,120]
[340698941,1729695047248,-500.0,0.00049796,120]
[340698943,1729695047258,-500.0,0.00049796,120]
[340698945,1729695047268,-500.0,0.00049796,120]
[340698947,1729695047277,-583.75,0.00049796,120]
[340698949,1729695047286,-500.0,0.00049796,120]
[340698951,1729695047295,-500.0,0.00049796,120]
[340698953,1729695047305,-500.0,0.00049796,120]
[340698955,1729695047314,-500.0,0.00049796,120]
[340698957,1729695047323,-500.0,0.00049796,120]
[340698959,1729695047333,-500.0,0.00049796,120]
[340698961,1729695047342,-500.0,0.00049796,120]
[340698963,1729695047351,-591.95,0.00049796,120]
[340698965,1729695047361,-516.5239388,0.00049796,120]
[340698967,1729695047370,-500.0,0.00049796,120]
[340698969,1729695047380,-500.0,0.00049796,120]
[340698971,1729695047389,-500.0,0.00049796,120]
[340698973,1729695047399,-1926.93,0.00049796,120]
[340698975,1729695047408,-500.0,0.00049796,120]
[340698977,1729695047418,-500.0,0.00049796,120]
[340698978,1729695047427,-500.0,0.00049796,120]
[340698980,1729695047436,-500.0,0.00049796,120]
[340698982,1729695047446,-500.0,0.00049796,120]
[340698984,1729695047456,-500.0,0.00049796,120]
[340698986,1729695047466,-1953.12,0.00049796,120]
[340698988,1729695047475,-500.0,0.00049796,120]
[340698990,1729695047485,-500.0,0.00049796,120]
[340698992,1729695047495,-1316.14,0.00049796,120]
[340698994,1729695047505,-500.0,0.00049796,120]
[340698996,1729695047515,-500.0,0.00049796,120]
[340698998,1729695047524,-513.64,0.00049796,120]
[340699000,1729695047534,-500.0,0.00049796,120]
[340699002,1729695047544,-500.0,0.00049796,120]
[340699003,1729695047553,-500.0,0.00049796,120]
[340699004,1729695047564,-1902.26,0.00049796,120]
[340699005,1729695047574,-527.64835929,0.00049796,120]
[340699006,1729695047584,-500.0,0.00049796,120]
[340699007,1729695047594,-511.64998319,0.00049796,120]
[340699008,1729695047603,-500.0,0.00049796,120]
[340699009,1729695047614,-699.33,0.00049796,120]
[340699010,1729695047624,-498.93014001,0.00049796,120]
[340699011,1729695047633,-2403.72,0.00049796,120]
[340699012,1729695047643,-686.38,0.00049796,120]
[340699013,1729695047652,-500.0,0.00049796,120]
[340699014,1729695047662,-480.47848514,0.00049796,120]
[340699015,1729695047672,-500.0,0.00049796,120]
[340699016,1729695047681,-500.0,0.00049796,120]
[340699017,1729695047690,-500.0,0.00049796,120]
[340699018,1729695047699,-631.69,0.00049796,120]
[340699019,1729695047708,-500.0,0.00049796,120]
[340699020,1729695047718,-2091.96,0.00049796,120]
[340699021,1729695047727,-549.51,0.00049796,120]
[340699022,1729695047737,-450.0,0.00049796,120]
[340699023,1729695047747,-280.1462328,0.00049796,120]
[340699025,1729695047757,-501.15,0.00049796,120]
[340699027,1729695047766,-500.0,0.00049796,120]
[340699029,1729695047776,-500.0,0.00049796,120]
[340699031,1729695047789,-2666.93,0.00049796,120]
[340699033,1729695047800,-500.0,0.00049796,120]
[340699034,1729695047810,-1895.2,0.00049796,120]
[340699037,1729695047825,-500.0,0.00049796,120]
[340699039,1729695047835,-500.0,0.00049796,120]
[340699041,1729695047844,-500.0,0.00049796,120]
[340699042,1729695047853,-510.95051937,0.00049796,120]
[340699044,1729695047862,-500.0,0.00049796,120]
[340699046,1729695047871,-500.0,0.00049796,120]
[340699047,1729695047880,-318.40229107,0.00049796,120]
[340699048,1729695047889,-639.01,0.00049796,120]
[340699049,1729695047899,-2056.13,0.00049796,120]
[340699050,1729695047909,-151.0,0.00049796,120]
[340699051,1729695047919,-500.0,0.00049796,120]
[340699052,1729695047928,-739.87,0.00049796,120]
[340699053,1729695047938,-500.0,0.00049797,120]
[340699054,1729695047947,-500.0,0.00049797,120]
[340699055,1729695047956,-651.7,0.00049797,120]
[340699056,1729695047966,-384.91499939,0.00049797,120]
[340699057,1729695047975,-500.0,0.00049797,120]
[340699058,1729695047985,-500.0,0.00049797,120]
[340699059,1729695047994,-500.0,0.00049797,120]
[340699060,1729695048004,-500.0,0.00049797,120]
[340699061,1729695048013,-500.0,0.00049797,120]
[340699062,1729695048023,-505.6,0.00049797,120]
[340699063,1729695048032,-531.83,0.00049797,120]
[340699064,1729695048041,-500.0,0.00049797,120]
[340699065,1729695048051,-500.0,0.00049797,120]
[340699066,1729695048061,-861.3,0.00049797,120]
[340699067,1729695048070,-645.91,0.00049797,120]
[340699068,1729695048080,-500.0,0.00049797,120]
[340699069,1729695048089,-1300.94,0.00049797,120]
[340699070,1729695048099,-2414.78,0.00049797,120]
[340699071,1729695048108,-500.0,0.00049797,120]
[340699072,1729695048117,-500.0,0.00049797,120]
[340699073,1729695048127,-500.0,0.00049797,120]
[340699074,1729695048136,-500.0,0.00049797,120]
[340699075,1729695048146,-500.0,0.00049797,120]
[340699076,1729695048155,-500.0,0.00049797,120]
[340699077,1729695048165,-500.0,0.00049797,120]
[340699078,1729695048175,-500.0,0.00049797,120]
[340699079,1729695048185,-500.0,0.00049797,120]
[340699080,1729695048194,-639.26,0.00049797,120]
[340699081,1729695048203,-1666.47,0.00049797,120]
[340699082,1729695048212,-500.0,0.00049797,120]
[340699083,1729695048222,-500.0,0.00049797,120]
[340699084,1729695048233,-151.0,0.00049797,120]
[340699085,1729695048242,-151.0,0.00049797,120]
[340699086,1729695048252,-583.75,0.00049797,120]
[340699087,1729695048261,-151.0,0.00049799,120]
[340699088,1729695048271,-150.0,0.000498,7]
[340699089,1729695048280,-1500.0,0.00049806,14]
[340699090,1729695048290,-117711.8308333,0.00049807,2]
[340699091,1729695048300,-4288.1451666,0.00049807,2]
[340699092,1729695048310,-7000.0,0.0004982,120]
[340699093,1729695048322,-150.0,0.00049841,7]
[340699094,1729695048332,-5609.54079657,0.0004986,120]
[340699095,1729695048341,-500.0,0.00049867,120]
[340699096,1729695048351,-1038.31,0.00049867,120]
[340699097,1729695048361,-500.0,0.00049867,120]
[340699098,1729695048370,-1396.2,0.00049867,120]
[340699099,1729695048379,-2499.88,0.00049867,120]
[340699100,1729695048390,-581.14,0.00049867,120]
[340699101,1729695048401,-500.0,0.00049867,120]
[340699102,1729695048411,-2403.29,0.00049867,120]
[340699103,1729695048421,-2393.31,0.00049867,120]
[340699104,1729695048430,-1078.45,0.00049867,120]
[340699105,1729695048439,-1462.44,0.00049867,120]
[340699106,1729695048447,-865.81,0.00049867,120]
[340699107,1729695048457,-596.71,0.00049867,120]
[340699108,1729695048467,-1434.43,0.00049867,120]
[340699109,1729695048477,-523.84159813,0.00049867,120]
[340699110,1729695048487,-500.0,0.00049867,120]
[340699111,1729695048497,-311.56709635,0.00049867,120]
[340699112,1729695048507,-539.87,0.00049867,120]
[340699113,1729695048516,-6123.06,0.00049867,120]
[340699114,1729695048526,-500.0,0.00049867,120]
[340699115,1729695048535,-500.0,0.00049867,120]
[340699116,1729695048546,-500.0,0.00049867,120]
[340699117,1729695048557,-586.30215363,0.00049867,120]
[340699118,1729695048568,-500.0,0.00049868,120]
[340699119,1729695048577,-551.7,0.00049868,120]
[340699120,1729695048586,-500.0,0.00049868,120]
[340699121,1729695048596,-500.0,0.00049868,120]
[340699122,1729695048606,-500.0,0.00049868,120]
[340699123,1729695048615,-1279.4,0.00049868,120]
[340699124,1729695048625,-541.69,0.00049868,120]
[340699125,1729695048634,-500.0,0.00049868,120]
[340699126,1729695048643,-500.0,0.00049868,120]
[340699127,1729695048653,-345.72056001,0.00049868,120]
[340699128,1729695048663,-500.0,0.00049868,120]
[340699129,1729695048672,-500.0,0.00049868,120]
[340699130,1729695048682,-500.0,0.00049868,120]
[340699131,1729695048691,-500.0,0.00049868,120]
[340699132,1729695048700,-500.0,0.00049868,120]
[340699133,1729695048710,-800.5,0.00049868,120]
[340699134,1729695048720,-829.74,0.00049868,120]
[340699135,1729695048729,-242.41001252,0.00049868,120]
[340699136,1729695048739,-500.0,0.00049868,120]
[340699137,1729695048748,-513.419514,0.00049868,120]
[340699138,1729695048758,-500.0,0.00049868,120]
[340699139,1729695048767,-831.97,0.00049868,120]
[340699140,1729695048778,-500.0,0.00049868,120]
[340699141,1729695048789,-3068.62,0.00049868,120]
[340699142,1729695048799,-275.26840805,0.00049868,120]
[340699143,1729695048809,-2062.02,0.00049868,120]
[340699144,1729695048819,-636.42,0.00049868,120]
[340699145,1729695048829,-500.0,0.00049868,120]
[340699146,1729695048839,-632.86,0.00049868,120]
[340699147,1729695048848,-500.0,0.00049868,120]
[340699148,1729695048858,-500.0,0.00049868,120]
[340699149,1729695048868,-521.15,0.00049868,120]
[340699150,1729695048877,-500.0,0.00049868,120]
[340699151,1729695048887,-500.0,0.00049868,120]
[340699152,1729695048897,-1010.38,0.00049868,120]
[340699153,1729695048907,-500.0,0.00049868,120]
[340699154,1729695048916,-500.0,0.00049868,120]
[340699155,1729695048925,-829.76,0.00049868,120]
[340699156,1729695048935,-710.82,0.00049868,120]
[340699157,1729695048944,-500.0,0.00049868,120]
[340699158,1729695048955,-500.0,0.00049868,120]
[340699159,1729695048965,-500.0,0.00049868,120]
[340699160,1729695048976,-500.0,0.00049868,120]
[340699161,1729695048986,-500.0,0.00049868,120]
[340699162,1729695048995,-500.0,0.00049868,120]
[340699163,1729695049005,-500.0,0.00049868,120]
[340699164,1729695049015,-500.0,0.00049868,120]
[340699165,1729695049024,-500.0,0.00049868,120]
[340699166,1729695049033,-500.0,0.00049868,120]
[340699167,1729695049043,-500.0,0.00049868,120]
[340699168,1729695049052,-500.0,0.00049868,120]
[340699169,1729695049063,-500.0,0.00049868,120]
[340699170,1729695049072,-2091.95,0.00049868,120]
[340699171,1729695049081,-525.1809492,0.00049868,120]
[340699172,1729695049091,-285.083403,0.00049868,120]
[340699173,1729695049101,-500.0,0.00049868,120]
[340699174,1729695049111,-500.0,0.00049868,120]
[340699175,1729695049120,-500.0,0.00049868,120]
[340699176,1729695049130,-405.89748,0.00049868,120]
[340699177,1729695049139,-568.93204264,0.00049868,120]
[340699178,1729695049148,-15318.09,0.00049868,120]
[340699179,1729695049158,-551.94653384,0.00049868,120]
[340699180,1729695049167,-500.0,0.00049868,120]
[340699181,1729695049177,-500.0,0.00049868,120]
[340699182,1729695049187,-500.0,0.00049868,120]
[340699183,1729695049197,-696.58,0.00049868,120]
[340699184,1729695049207,-500.0,0.00049868,120]
[340699185,1729695049217,-500.0,0.00049868,120]
[340699186,1729695049226,-500.0,0.00049868,120]
[340699187,1729695049236,-500.0,0.00049868,120]
[340699188,1729695049246,-956.6,0.00049868,120]
[340699189,1729695049257,-500.0,0.00049868,120]
[340699190,1729695049267,-500.0,0.00049868,120]
[340699191,1729695049276,-500.0,0.00049868,120]
[340699192,1729695049286,-500.0,0.00049868,120]
[340699193,1729695049296,-1237.23,0.00049868,120]
[340699194,1729695049306,-500.0,0.00049868,120]
[340699195,1729695049316,-500.0,0.00049868,120]
[340699196,1729695049327,-500.0,0.00049868,120]
[340699197,1729695049337,-500.0,0.00049868,120]
[340699198,1729695049346,-500.0,0.00049868,120]
[340699199,1729695049356,-500.0,0.00049868,120]
[340699200,1729695049366,-500.0,0.00049868,120]
[340699201,1729695049376,-500.0,0.00049868,120]
[340699202,1729695049386,-5655.78,0.00049868,21]
[340699203,1729695049396,-500.0,0.00049868,120]
[340699204,1729695049406,-1000.0,0.00049868,120]
[340699205,1729695049418,-500.0,0.00049868,120]
[340699206,1729695049428,-500.0,0.00049868,120]
[340699207,1729695049438,-500.0,0.00049868,120]
[340699208,1729695049448,-500.0,0.00049868,120]
[340699209,1729695049458,-500.0,0.00049868,120]
[340699210,1729695049467,-500.0,0.00049868,120]